[Event "Late-Titled-Tuesday-Blitz-May-14-2024"]
[Site "Chess.com"]
[Date "2024.05.14"]
[Round "6"]
[White "imdvb6307"]
[Black "schachlana"]
[Result "1-0"]
[WhiteElo "2529"]
[BlackElo "2349"]
[TimeControl "180+1"]
[EndTime "15:08:45 PDT"]
[Termination "imdvb6307 won by resignation"]

1. d4 {[%clk 0:03:00.9]} 1... Nf6 {[%clk 0:02:57.2]} 2. Nf3 {[%clk 0:03:00.9]}
2... g6 {[%clk 0:02:57.6]} 3. c4 {[%clk 0:03:00.4]} 3... Bg7 {[%clk 0:02:56.8]}
4. Nc3 {[%clk 0:03:00.9]} 4... c5 {[%clk 0:02:57.1]} 5. e4 {[%clk 0:03:00.1]}
5... cxd4 {[%clk 0:02:55.2]} 6. Nxd4 {[%clk 0:03:00.7]} 6... d6 {[%clk
0:02:55.9]} 7. Be2 {[%clk 0:02:59.4]} 7... O-O {[%clk 0:02:56.2]} 8. Be3 {[%clk
0:02:59.3]} 8... Nc6 {[%clk 0:02:56.2]} 9. h3 {[%clk 0:02:58.8]} 9... a6 {[%clk
0:02:54]} 10. O-O {[%clk 0:02:57.5]} 10... Bd7 {[%clk 0:02:53.3]} 11. Nf3 {[%clk
0:02:50.5]} 11... Rc8 {[%clk 0:02:50]} 12. Rc1 {[%clk 0:02:47.2]} 12... Re8
{[%clk 0:02:46.8]} 13. Nd5 {[%clk 0:02:18.6]} 13... Nxd5 {[%clk 0:02:31.1]} 14.
exd5 {[%clk 0:02:18.2]} 14... Ne5 {[%clk 0:02:28.4]} 15. Nxe5 {[%clk 0:02:17.3]}
15... Bxe5 {[%clk 0:02:27.7]} 16. b4 {[%clk 0:02:16.5]} 16... Bf5 {[%clk
0:02:24.9]} 17. Bg4 {[%clk 0:02:00.6]} 17... Qd7 {[%clk 0:02:24.1]} 18. Qf3
{[%clk 0:01:46]} 18... Bxg4 {[%clk 0:02:15]} 19. Qxg4 {[%clk 0:01:44.6]} 19...
Qa4 {[%clk 0:02:15]} 20. c5 {[%clk 0:01:44.2]} 20... Qxa2 {[%clk 0:02:08.1]} 21.
Rfd1 {[%clk 0:01:37.9]} 21... f5 {[%clk 0:01:39]} 22. Qh4 {[%clk 0:01:25]} 22...
Qa4 {[%clk 0:01:28.7]} 23. cxd6 {[%clk 0:01:12.3]} 23... exd6 {[%clk 0:01:24.1]}
24. Re1 {[%clk 0:00:51.3]} 24... Qd7 {[%clk 0:01:09.4]} 25. Bd4 {[%clk
0:00:43.4]} 25... Rxc1 {[%clk 0:00:53.3]} 26. Rxc1 {[%clk 0:00:42.7]} 26... Qe7
{[%clk 0:00:46.3]} 27. Qxe7 {[%clk 0:00:35.4]} 27... Rxe7 {[%clk 0:00:47.2]} 28.
Rc8+ {[%clk 0:00:33.1]} 28... Kf7 {[%clk 0:00:43.9]} 29. Bb6 {[%clk 0:00:18.2]}
29... Bf4 {[%clk 0:00:35.5]} 30. g3 {[%clk 0:00:17.5]} 30... Bd2 {[%clk
0:00:36.2]} 31. Ba5 {[%clk 0:00:12.7]} 31... h5 {[%clk 0:00:20]} 32. Rc2 {[%clk
0:00:12]} 32... Bg5 {[%clk 0:00:15.7]} 33. h4 {[%clk 0:00:11.6]} 33... Bh6
{[%clk 0:00:16.1]} 34. Rc8 {[%clk 0:00:11.5]} 34... Bg7 {[%clk 0:00:15.5]} 35.
Bc7 {[%clk 0:00:11.4]} 35... Be5 {[%clk 0:00:15.5]} 36. Bb8 {[%clk 0:00:10.4]}
36... Rd7 {[%clk 0:00:15.2]} 37. f4 {[%clk 0:00:09.7]} 37... Bd4+ {[%clk
0:00:14.2]} 38. Kg2 {[%clk 0:00:10.2]} 38... Ke7 {[%clk 0:00:12.7]} 39. Rg8
{[%clk 0:00:09.5]} 39... Kf7 {[%clk 0:00:12.3]} 40. Rc8 {[%clk 0:00:09.6]} 40...
Bf6 {[%clk 0:00:11.8]} 41. Bc7 {[%clk 0:00:07]} 41... Bc3 {[%clk 0:00:10.8]} 42.
Ba5 {[%clk 0:00:05.9]} 42... Bd2 {[%clk 0:00:10.7]} 43. Kf3 {[%clk 0:00:05.5]}
43... b6 {[%clk 0:00:10.3]} 44. Bxb6 {[%clk 0:00:05.2]} 44... Bxb4 {[%clk
0:00:10.8]} 45. Ra8 {[%clk 0:00:05.7]} 45... Rb7 {[%clk 0:00:08.9]} 46. Rxa6
{[%clk 0:00:05.3]} 46... Bc3 {[%clk 0:00:08.8]} 47. Ke2 {[%clk 0:00:04.7]} 47...
Bf6 {[%clk 0:00:08.1]} 48. Kd3 {[%clk 0:00:04.9]} 48... Be7 {[%clk 0:00:06.3]}
49. Kc4 {[%clk 0:00:05]} 49... Rb8 {[%clk 0:00:05.7]} 50. Kb5 {[%clk 0:00:02.7]}
50... Rc8 {[%clk 0:00:06.2]} 51. Ra3 {[%clk 0:00:03]} 51... Rc2 {[%clk
0:00:06.2]} 52. Ka6 {[%clk 0:00:02.9]} 52... Rb2 {[%clk 0:00:06]} 53. Bc7 {[%clk
0:00:02.2]} 53... Rc2 {[%clk 0:00:05.4]} 54. Kb7 {[%clk 0:00:02]} 54... Rb2+
{[%clk 0:00:05.6]} 55. Kc6 {[%clk 0:00:01.3]} 55... Rc2+ {[%clk 0:00:06.1]} 56.
Kd7 {[%clk 0:00:01.4]} 56... Rg2 {[%clk 0:00:05.9]} 57. Re3 {[%clk 0:00:01.3]}
57... Bf8 {[%clk 0:00:05.1]} 58. Bxd6 {[%clk 0:00:01.6]} 58... Bxd6 {[%clk
0:00:05.3]} 59. Kxd6 {[%clk 0:00:02.2]} 59... Rd2 {[%clk 0:00:05.7]} 60. Ke5
{[%clk 0:00:02.4]} 60... Rd1 {[%clk 0:00:05.7]} 61. Ra3 {[%clk 0:00:02.4]} 61...
Rg1 {[%clk 0:00:04.8]} 62. Ra7+ {[%clk 0:00:00.8]} 62... Kf8 {[%clk 0:00:03.2]}
63. Kf6 {[%clk 0:00:01.2]} 63... Ke8 {[%clk 0:00:02.1]} 64. Ra8+ {[%clk
0:00:02.1]} 64... Kd7 {[%clk 0:00:02.5]} 65. Kxg6 {[%clk 0:00:01.6]} 65... Rxg3+
{[%clk 0:00:03.1]} 66. Kxf5 {[%clk 0:00:02.2]} 66... Kd6 {[%clk 0:00:03.5]} 67.
Ra6+ {[%clk 0:00:02.6]} 67... Kxd5 {[%clk 0:00:03.9]} 68. Rh6 {[%clk 0:00:03.2]}
68... Rf3 {[%clk 0:00:02.1]} 69. Kg5 {[%clk 0:00:03.2]} 69... Rg3+ {[%clk
0:00:02.2]} 70. Kxh5 {[%clk 0:00:03.6]} 70... Ke4 {[%clk 0:00:03.1]} 71. Rf6
{[%clk 0:00:03.6]} 71... Rg8 {[%clk 0:00:01.7]} 72. Kh6 {[%clk 0:00:03.6]} 72...
Rh8+ {[%clk 0:00:02.1]} 73. Kg5 {[%clk 0:00:04.1]} 73... Rg8+ {[%clk 0:00:02.8]}
74. Rg6 {[%clk 0:00:04]} 74... Rh8 {[%clk 0:00:03.5]} 75. h5 {[%clk 0:00:04.3]}
75... Rf8 {[%clk 0:00:02.7]} 76. Re6+ {[%clk 0:00:04.6]} 76... Kd5 {[%clk
0:00:02.9]} 77. Re7 {[%clk 0:00:05.2]} 77... Kd6 {[%clk 0:00:02.5]} 78. Re4
{[%clk 0:00:04.6]} 78... Rg8+ {[%clk 0:00:03.1]} 79. Kh6 {[%clk 0:00:04.1]}
79... Rh8+ {[%clk 0:00:02.6]} 80. Kg6 {[%clk 0:00:04.5]} 80... Rg8+ {[%clk
0:00:03.1]} 81. Kh7 {[%clk 0:00:04.7]} 81... Rf8 {[%clk 0:00:03.5]} 82. h6
{[%clk 0:00:04.7]} 82... Kd5 {[%clk 0:00:04.2]} 83. Ra4 {[%clk 0:00:04.7]} 83...
Kd6 {[%clk 0:00:04]} 84. Ra6+ {[%clk 0:00:04.6]} 84... Ke7 {[%clk 0:00:04.2]}
85. Ra7+ {[%clk 0:00:04.6]} 85... Kf6 {[%clk 0:00:04.6]} 86. Rg7 {[%clk
0:00:03.7]} 86... Kf5 {[%clk 0:00:03.6]} 87. Rg6 {[%clk 0:00:03.5]} 87... Kxf4
{[%clk 0:00:03.7]} 88. Ra6 {[%clk 0:00:03.1]} 88... Rb8 {[%clk 0:00:03.6]} 89.
Ra7 {[%clk 0:00:02.8]} 89... Kg5 {[%clk 0:00:03.4]} 90. Kg7 {[%clk 0:00:03]}
90... Rb6 {[%clk 0:00:02.5]} 91. h7 {[%clk 0:00:03.4]} 91... Rg6+ {[%clk
0:00:02.7]} 92. Kf8 {[%clk 0:00:03.6]} 92... Rf6+ {[%clk 0:00:03.2]} 93. Kg8
{[%clk 0:00:03.2]} 93... Rg6+ {[%clk 0:00:03.5]} 94. Rg7 {[%clk 0:00:03.4]}
94... Rxg7+ {[%clk 0:00:01]} 95. Kxg7 {[%clk 0:00:03.7]} 1-0

[Event "Late-Titled-Tuesday-Blitz-May-14-2024"]
[Site "Chess.com"]
[Date "2024.05.14"]
[Round "7"]
[White "ural58"]
[Black "ReadySkate"]
[Result "0-1"]
[WhiteElo "2484"]
[BlackElo "2743"]
[TimeControl "180+1"]
[EndTime "15:11:13 PDT"]
[Termination "ReadySkate won by checkmate"]

1. e4 {[%clk 0:02:58]} 1... c5 {[%clk 0:02:59.2]} 2. b3 {[%clk 0:02:57.4]} 2...
d5 {[%clk 0:02:59]} 3. exd5 {[%clk 0:02:56.8]} 3... Nf6 {[%clk 0:02:59.1]} 4.
Bb5+ {[%clk 0:02:55.2]} 4... Bd7 {[%clk 0:02:59.1]} 5. Bxd7+ {[%clk 0:02:54.2]}
5... Qxd7 {[%clk 0:02:59.2]} 6. c4 {[%clk 0:02:54.1]} 6... e6 {[%clk 0:02:58.8]}
7. Bb2 {[%clk 0:02:54.1]} 7... exd5 {[%clk 0:02:58.6]} 8. Bxf6 {[%clk 0:02:54]}
8... gxf6 {[%clk 0:02:59.3]} 9. Nc3 {[%clk 0:02:51.7]} 9... dxc4 {[%clk
0:02:57.9]} 10. bxc4 {[%clk 0:02:51.4]} 10... Nc6 {[%clk 0:02:58.4]} 11. Nf3
{[%clk 0:02:51]} 11... O-O-O {[%clk 0:02:57.7]} 12. O-O {[%clk 0:02:50.8]} 12...
Bd6 {[%clk 0:02:57.9]} 13. Nd5 {[%clk 0:02:47.8]} 13... Qf5 {[%clk 0:02:50.4]}
14. Rb1 {[%clk 0:02:34.4]} 14... Rdg8 {[%clk 0:02:48.1]} 15. Rb3 {[%clk
0:02:26.7]} 15... Qh3 {[%clk 0:02:33.7]} 16. Ne1 {[%clk 0:02:25]} 16... Qxh2#
{[%clk 0:02:32.3]} 0-1

[Event "Late-Titled-Tuesday-Blitz-May-14-2024"]
[Site "Chess.com"]
[Date "2024.05.14"]
[Round "7"]
[White "Kildepiotr"]
[Black "slorovel"]
[Result "1-0"]
[WhiteElo "2733"]
[BlackElo "2567"]
[TimeControl "180+1"]
[EndTime "15:12:13 PDT"]
[Termination "Kildepiotr won by resignation"]

1. Nf3 {[%clk 0:02:57]} 1... g6 {[%clk 0:02:58.9]} 2. g3 {[%clk 0:02:57.1]} 2...
Bg7 {[%clk 0:02:59.1]} 3. d4 {[%clk 0:02:57.8]} 3... Nf6 {[%clk 0:02:57.8]} 4.
Bg2 {[%clk 0:02:58.3]} 4... O-O {[%clk 0:02:58.5]} 5. O-O {[%clk 0:02:58.5]}
5... d6 {[%clk 0:02:59.3]} 6. Nbd2 {[%clk 0:02:58.4]} 6... Nc6 {[%clk
0:02:58.9]} 7. e4 {[%clk 0:02:58.2]} 7... e5 {[%clk 0:02:59.1]} 8. dxe5 {[%clk
0:02:58.5]} 8... dxe5 {[%clk 0:02:58.9]} 9. c3 {[%clk 0:02:58.2]} 9... Be6
{[%clk 0:02:57.2]} 10. Qe2 {[%clk 0:02:58]} 10... h6 {[%clk 0:02:51.4]} 11. b4
{[%clk 0:02:57.6]} 11... a6 {[%clk 0:02:50.8]} 12. Nc4 {[%clk 0:02:57.8]} 12...
Nd7 {[%clk 0:02:50.5]} 13. Rd1 {[%clk 0:02:53]} 13... Qe7 {[%clk 0:02:50.1]} 14.
a4 {[%clk 0:02:53.1]} 14... Kh7 {[%clk 0:02:40.6]} 15. Ba3 {[%clk 0:02:48.3]}
15... Bxc4 {[%clk 0:01:51.3]} 16. Qxc4 {[%clk 0:02:46.8]} 16... Nb6 {[%clk
0:01:51.5]} 17. Qb3 {[%clk 0:02:46]} 17... Qe6 {[%clk 0:01:51.3]} 18. Qxe6
{[%clk 0:02:40.3]} 18... fxe6 {[%clk 0:01:52.2]} 19. b5 {[%clk 0:02:36.1]} 19...
axb5 {[%clk 0:01:45.3]} 20. Bxf8 {[%clk 0:02:33.2]} 20... Bxf8 {[%clk
0:01:38.8]} 21. axb5 {[%clk 0:02:33]} 1-0

[Event "Late-Titled-Tuesday-Blitz-May-14-2024"]
[Site "Chess.com"]
[Date "2024.05.14"]
[Round "7"]
[White "Squirlolz"]
[Black "NajdorfPlayerc5"]
[Result "0-1"]
[WhiteElo "2556"]
[BlackElo "2415"]
[TimeControl "180+1"]
[EndTime "15:13:00 PDT"]
[Termination "NajdorfPlayerc5 won by checkmate"]

1. Nf3 {[%clk 0:03:00.9]} 1... Nf6 {[%clk 0:02:56.2]} 2. g3 {[%clk 0:03:01.4]}
2... b6 {[%clk 0:02:53.3]} 3. Bg2 {[%clk 0:03:02.3]} 3... Bb7 {[%clk 0:02:53.4]}
4. O-O {[%clk 0:03:03.1]} 4... e6 {[%clk 0:02:53.8]} 5. b3 {[%clk 0:03:03]} 5...
Be7 {[%clk 0:02:53.8]} 6. Bb2 {[%clk 0:03:03]} 6... O-O {[%clk 0:02:54.3]} 7. c4
{[%clk 0:03:03.4]} 7... d5 {[%clk 0:02:54.1]} 8. cxd5 {[%clk 0:03:02.7]} 8...
exd5 {[%clk 0:02:55]} 9. Nd4 {[%clk 0:02:57.9]} 9... c5 {[%clk 0:02:36.2]} 10.
Nf5 {[%clk 0:02:57.9]} 10... Nc6 {[%clk 0:02:33.9]} 11. e3 {[%clk 0:02:55.1]}
11... Re8 {[%clk 0:02:22.5]} 12. Nxe7+ {[%clk 0:02:43.1]} 12... Qxe7 {[%clk
0:02:20.7]} 13. Nc3 {[%clk 0:02:41.9]} 13... d4 {[%clk 0:01:59.3]} 14. Nd5
{[%clk 0:02:41.2]} 14... Nxd5 {[%clk 0:01:58.4]} 15. Bxd5 {[%clk 0:02:42.1]}
15... Rad8 {[%clk 0:01:57.1]} 16. Bg2 {[%clk 0:02:33.9]} 16... Ne5 {[%clk
0:01:54.8]} 17. e4 {[%clk 0:02:21.6]} 17... Nd3 {[%clk 0:01:51.5]} 18. Qc2
{[%clk 0:02:21.6]} 18... Bxe4 {[%clk 0:01:46.1]} 19. Bxe4 {[%clk 0:02:02.6]}
19... Qxe4 {[%clk 0:01:47]} 20. Ba3 {[%clk 0:01:47]} 20... Nxf2 {[%clk
0:01:35.8]} 21. Qc4 {[%clk 0:01:43.4]} 21... Nh3# {[%clk 0:01:34.7]} 0-1

[Event "Late-Titled-Tuesday-Blitz-May-14-2024"]
[Site "Chess.com"]
[Date "2024.05.14"]
[Round "7"]
[White "Bryanl106"]
[Black "Akhayan"]
[Result "1-0"]
[WhiteElo "2671"]
[BlackElo "2447"]
[TimeControl "180+1"]
[EndTime "15:13:26 PDT"]
[Termination "Bryanl106 won by resignation"]

1. e4 {[%clk 0:03:00.9]} 1... e5 {[%clk 0:02:59.2]} 2. Nf3 {[%clk 0:03:00.8]}
2... Nc6 {[%clk 0:02:58.3]} 3. Nc3 {[%clk 0:03:01]} 3... Nf6 {[%clk 0:02:57.9]}
4. a3 {[%clk 0:03:01.3]} 4... Nxe4 {[%clk 0:02:49.9]} 5. Nxe4 {[%clk 0:03:00.4]}
5... d5 {[%clk 0:02:50.5]} 6. Ng3 {[%clk 0:03:00.9]} 6... e4 {[%clk 0:02:49.8]}
7. Ng1 {[%clk 0:02:45.7]} 7... f5 {[%clk 0:02:46.9]} 8. Bb5 {[%clk 0:02:45.5]}
8... Bd6 {[%clk 0:02:46.2]} 9. d4 {[%clk 0:02:42.7]} 9... O-O {[%clk 0:02:45.9]}
10. f4 {[%clk 0:02:37.9]} 10... exf3 {[%clk 0:02:30.1]} 11. Nxf3 {[%clk
0:02:37.2]} 11... f4 {[%clk 0:02:28.7]} 12. Ne2 {[%clk 0:02:35.7]} 12... g5
{[%clk 0:02:22.8]} 13. O-O {[%clk 0:02:26]} 13... g4 {[%clk 0:02:23.1]} 14. Bxc6
{[%clk 0:02:24.2]} 14... bxc6 {[%clk 0:02:19.8]} 15. Ne5 {[%clk 0:02:24.4]}
15... Ba6 {[%clk 0:01:59.7]} 16. Rxf4 {[%clk 0:02:21.9]} 16... Qh4 {[%clk
0:01:50.2]} 17. Be3 {[%clk 0:02:14]} 17... Rxf4 {[%clk 0:01:40.2]} 18. Bxf4
{[%clk 0:02:14.9]} 18... Rf8 {[%clk 0:01:34.5]} 19. Qd2 {[%clk 0:01:46.7]} 19...
Bxe5 {[%clk 0:01:29.9]} 20. dxe5 {[%clk 0:01:44.4]} 20... Bxe2 {[%clk
0:01:28.8]} 21. Bg3 {[%clk 0:01:44.6]} 21... Qh5 {[%clk 0:01:11]} 22. Qxe2
{[%clk 0:01:43.1]} 1-0

[Event "Late-Titled-Tuesday-Blitz-May-14-2024"]
[Site "Chess.com"]
[Date "2024.05.14"]
[Round "7"]
[White "RianKapriaga"]
[Black "OIAM03"]
[Result "1-0"]
[WhiteElo "2284"]
[BlackElo "1961"]
[TimeControl "180+1"]
[EndTime "15:13:32 PDT"]
[Termination "RianKapriaga won by resignation"]

1. d4 {[%clk 0:03:00.9]} 1... Nf6 {[%clk 0:02:59.5]} 2. c4 {[%clk 0:02:59.8]}
2... g6 {[%clk 0:02:59.6]} 3. Nc3 {[%clk 0:02:58.1]} 3... d5 {[%clk 0:02:59.8]}
4. cxd5 {[%clk 0:02:54.6]} 4... Nxd5 {[%clk 0:03:00.2]} 5. e4 {[%clk 0:02:52.1]}
5... Nxc3 {[%clk 0:03:00.7]} 6. bxc3 {[%clk 0:02:52.9]} 6... Bg7 {[%clk
0:03:01.3]} 7. Bc4 {[%clk 0:02:52.5]} 7... c5 {[%clk 0:03:01.5]} 8. Ne2 {[%clk
0:02:52.8]} 8... cxd4 {[%clk 0:02:57.7]} 9. cxd4 {[%clk 0:02:52.3]} 9... Nc6
{[%clk 0:02:57.8]} 10. Be3 {[%clk 0:02:47.5]} 10... Qa5+ {[%clk 0:02:58.2]} 11.
Kf1 {[%clk 0:02:46.5]} 11... O-O {[%clk 0:02:55]} 12. h4 {[%clk 0:02:35.2]}
12... h5 {[%clk 0:02:54.1]} 13. Nf4 {[%clk 0:02:07.5]} 13... b5 {[%clk
0:02:31.6]} 14. Bb3 {[%clk 0:02:04.6]} 14... e6 {[%clk 0:02:21.6]} 15. d5 {[%clk
0:01:57.5]} 15... e5 {[%clk 0:01:35.6]} 16. Nxg6 {[%clk 0:01:53.1]} 16... fxg6
{[%clk 0:01:32.6]} 17. dxc6+ {[%clk 0:01:52.3]} 17... Kh7 {[%clk 0:01:33.2]} 18.
Rc1 {[%clk 0:01:44.6]} 18... Bg4 {[%clk 0:01:22.1]} 19. Qd2 {[%clk 0:01:34.2]}
19... Rad8 {[%clk 0:01:20.9]} 20. Qxa5 {[%clk 0:01:32.9]} 1-0

[Event "Late-Titled-Tuesday-Blitz-May-14-2024"]
[Site "Chess.com"]
[Date "2024.05.14"]
[Round "7"]
[White "SahaNeelash"]
[Black "HanSchut"]
[Result "1-0"]
[WhiteElo "2692"]
[BlackElo "2368"]
[TimeControl "180+1"]
[EndTime "15:13:41 PDT"]
[Termination "SahaNeelash won by resignation"]

1. Nf3 {[%clk 0:03:00.9]} 1... Nf6 {[%clk 0:02:59.4]} 2. b3 {[%clk 0:03:00.9]}
2... g6 {[%clk 0:03:00.1]} 3. Bb2 {[%clk 0:03:01.4]} 3... Bg7 {[%clk 0:03:00.8]}
4. e3 {[%clk 0:03:01.9]} 4... O-O {[%clk 0:03:01.1]} 5. Be2 {[%clk 0:03:02.2]}
5... d5 {[%clk 0:03:01.3]} 6. O-O {[%clk 0:03:02.6]} 6... c5 {[%clk 0:03:01.9]}
7. c4 {[%clk 0:03:03]} 7... dxc4 {[%clk 0:03:02.1]} 8. bxc4 {[%clk 0:03:03.3]}
8... Nc6 {[%clk 0:03:02.7]} 9. Nc3 {[%clk 0:03:02.7]} 9... e5 {[%clk 0:02:40.1]}
10. d3 {[%clk 0:03:00.4]} 10... h6 {[%clk 0:02:39.2]} 11. Rb1 {[%clk 0:02:56.3]}
11... Bf5 {[%clk 0:02:34.9]} 12. e4 {[%clk 0:02:52.5]} 12... Be6 {[%clk
0:02:33.4]} 13. a3 {[%clk 0:02:52.4]} 13... b6 {[%clk 0:02:16.8]} 14. Nd5 {[%clk
0:02:50.3]} 14... Nd4 {[%clk 0:02:08.8]} 15. Nxd4 {[%clk 0:02:49.9]} 15... exd4
{[%clk 0:02:00.2]} 16. f4 {[%clk 0:02:49.5]} 16... Qd7 {[%clk 0:01:52]} 17. h3
{[%clk 0:02:32.5]} 17... Rfe8 {[%clk 0:01:40.1]} 18. Bf3 {[%clk 0:02:29.8]}
18... Rac8 {[%clk 0:01:34.9]} 19. g4 {[%clk 0:02:22.1]} 19... h5 {[%clk
0:01:27.4]} 20. Nxf6+ {[%clk 0:02:19.3]} 20... Bxf6 {[%clk 0:01:27.2]} 21. f5
{[%clk 0:02:20]} 21... hxg4 {[%clk 0:01:07.3]} 22. Bxg4 {[%clk 0:02:20.9]} 22...
gxf5 {[%clk 0:01:01.1]} 23. exf5 {[%clk 0:02:21.8]} 23... Bg5 {[%clk 0:00:53.1]}
24. fxe6 {[%clk 0:02:21.6]} 24... Be3+ {[%clk 0:00:53]} 25. Kg2 {[%clk
0:02:21.7]} 25... fxe6 {[%clk 0:00:46.8]} 26. Qf3 {[%clk 0:02:20.9]} 26... Rf8
{[%clk 0:00:43.2]} 27. Qe4 {[%clk 0:02:19]} 1-0

[Event "Late-Titled-Tuesday-Blitz-May-14-2024"]
[Site "Chess.com"]
[Date "2024.05.14"]
[Round "7"]
[White "Balla_Tamas"]
[Black "Anton_Demchenko"]
[Result "0-1"]
[WhiteElo "2535"]
[BlackElo "2850"]
[TimeControl "180+1"]
[EndTime "15:14:00 PDT"]
[Termination "Anton_Demchenko won by resignation"]

1. Nf3 {[%clk 0:03:00.9]} 1... Nf6 {[%clk 0:02:58.7]} 2. b3 {[%clk 0:03:00.6]}
2... a5 {[%clk 0:02:57.3]} 3. a3 {[%clk 0:02:58.8]} 3... c5 {[%clk 0:02:56.1]}
4. e3 {[%clk 0:02:57.1]} 4... a4 {[%clk 0:02:55.7]} 5. b4 {[%clk 0:02:55.4]}
5... e6 {[%clk 0:02:56.2]} 6. Bb2 {[%clk 0:02:37.1]} 6... cxb4 {[%clk
0:02:54.6]} 7. axb4 {[%clk 0:02:38]} 7... Bxb4 {[%clk 0:02:54.7]} 8. Bb5 {[%clk
0:02:36.5]} 8... O-O {[%clk 0:02:50.3]} 9. O-O {[%clk 0:02:32.2]} 9... Nc6
{[%clk 0:02:41.3]} 10. Bxa4 {[%clk 0:02:29.7]} 10... b6 {[%clk 0:02:33.9]} 11.
Nc3 {[%clk 0:02:01.1]} 11... Bb7 {[%clk 0:02:30.7]} 12. d4 {[%clk 0:02:00]}
12... Ra5 {[%clk 0:02:25.1]} 13. Qe2 {[%clk 0:01:50.9]} 13... Qa8 {[%clk
0:01:44.2]} 14. e4 {[%clk 0:01:41.1]} 14... Bxc3 {[%clk 0:01:41.5]} 15. Bxc6
{[%clk 0:01:29.7]} 15... Bxb2 {[%clk 0:01:41.7]} 16. Rxa5 {[%clk 0:01:28.6]}
16... bxa5 {[%clk 0:01:38.3]} 17. Bxb7 {[%clk 0:01:28.9]} 17... Qxb7 {[%clk
0:01:39.1]} 18. Rb1 {[%clk 0:01:29.2]} 18... a4 {[%clk 0:01:38.1]} 19. e5 {[%clk
0:01:09.5]} 19... Ne4 {[%clk 0:01:30.1]} 20. c4 {[%clk 0:00:55.9]} 20... a3
{[%clk 0:01:30.6]} 21. d5 {[%clk 0:00:56.2]} 21... Nc3 {[%clk 0:01:29.2]} 0-1

[Event "Late-Titled-Tuesday-Blitz-May-14-2024"]
[Site "Chess.com"]
[Date "2024.05.14"]
[Round "7"]
[White "volcanoexplorer"]
[Black "Michalczak"]
[Result "1-0"]
[WhiteElo "2714"]
[BlackElo "2507"]
[TimeControl "180+1"]
[EndTime "15:14:16 PDT"]
[Termination "volcanoexplorer won by checkmate"]

1. e4 {[%clk 0:03:00.9]} 1... e5 {[%clk 0:03:00]} 2. Nf3 {[%clk 0:03:00.9]} 2...
Nc6 {[%clk 0:03:00.7]} 3. Bc4 {[%clk 0:03:01.4]} 3... Nf6 {[%clk 0:03:00.6]} 4.
d3 {[%clk 0:03:02]} 4... Bc5 {[%clk 0:02:59.9]} 5. O-O {[%clk 0:03:02.6]} 5...
O-O {[%clk 0:02:58.3]} 6. c3 {[%clk 0:03:03.2]} 6... a5 {[%clk 0:02:57.1]} 7.
Re1 {[%clk 0:03:03.3]} 7... d6 {[%clk 0:02:57]} 8. Nbd2 {[%clk 0:03:03.3]} 8...
Be6 {[%clk 0:02:55.2]} 9. a4 {[%clk 0:03:03.1]} 9... h6 {[%clk 0:02:52.6]} 10.
Qb3 {[%clk 0:03:00.6]} 10... Bxc4 {[%clk 0:02:51.5]} 11. Nxc4 {[%clk 0:03:01.5]}
11... Qb8 {[%clk 0:02:46.3]} 12. Be3 {[%clk 0:03:00.2]} 12... Qa7 {[%clk
0:02:44.8]} 13. Rad1 {[%clk 0:02:59.9]} 13... Bxe3 {[%clk 0:02:44.5]} 14. Nxe3
{[%clk 0:03:00.8]} 14... Rab8 {[%clk 0:02:37.8]} 15. Nd5 {[%clk 0:02:52.8]}
15... Nxd5 {[%clk 0:02:37.1]} 16. exd5 {[%clk 0:02:53.7]} 16... Ne7 {[%clk
0:02:34]} 17. d4 {[%clk 0:02:54.4]} 17... f6 {[%clk 0:02:28]} 18. Qc4 {[%clk
0:02:38.2]} 18... Qb6 {[%clk 0:02:21.6]} 19. Rd2 {[%clk 0:02:29.5]} 19... Kh8
{[%clk 0:02:20.6]} 20. h3 {[%clk 0:02:13.5]} 20... Ng6 {[%clk 0:02:20.4]} 21.
Qd3 {[%clk 0:02:10.7]} 21... Nf4 {[%clk 0:02:20]} 22. Qf5 {[%clk 0:02:08.8]}
22... g6 {[%clk 0:02:06.5]} 23. Qg4 {[%clk 0:02:06.9]} 23... Kh7 {[%clk
0:02:02.3]} 24. g3 {[%clk 0:02:02.3]} 24... h5 {[%clk 0:01:51]} 25. Qd7+ {[%clk
0:02:00.6]} 25... Kh6 {[%clk 0:01:45.1]} 26. gxf4 {[%clk 0:01:59.8]} 26... exf4
{[%clk 0:01:45.8]} 27. Re7 {[%clk 0:01:59]} 27... Rh8 {[%clk 0:01:45.6]} 28. Nh4
{[%clk 0:01:37.6]} 28... Qb3 {[%clk 0:01:32]} 29. Qe6 {[%clk 0:01:19]} 29...
Rbf8 {[%clk 0:01:24.1]} 30. Qe4 {[%clk 0:01:18.1]} 30... f5 {[%clk 0:01:21.3]}
31. Qxf4+ {[%clk 0:01:16.2]} 31... g5 {[%clk 0:01:20.8]} 32. Nxf5+ {[%clk
0:01:07.2]} 32... Kg6 {[%clk 0:01:21]} 33. Rg7+ {[%clk 0:01:05.1]} 33... Kf6
{[%clk 0:01:21]} 34. Qxg5# {[%clk 0:01:06]} 1-0

[Event "Late-Titled-Tuesday-Blitz-May-14-2024"]
[Site "Chess.com"]
[Date "2024.05.14"]
[Round "7"]
[White "BabageldiAnnaberdiyev"]
[Black "jaramsdal"]
[Result "1/2-1/2"]
[WhiteElo "2551"]
[BlackElo "2364"]
[TimeControl "180+1"]
[EndTime "15:14:17 PDT"]
[Termination "Game drawn by repetition"]

1. e4 {[%clk 0:02:57.9]} 1... c5 {[%clk 0:02:58.8]} 2. Nf3 {[%clk 0:02:57.2]}
2... d6 {[%clk 0:02:58.4]} 3. d4 {[%clk 0:02:57.2]} 3... cxd4 {[%clk 0:02:59.3]}
4. Nxd4 {[%clk 0:02:57.9]} 4... Nf6 {[%clk 0:03:00.2]} 5. Nc3 {[%clk 0:02:58.2]}
5... g6 {[%clk 0:03:00.4]} 6. Be3 {[%clk 0:02:57.7]} 6... Bg7 {[%clk 0:02:59.4]}
7. f3 {[%clk 0:02:58.3]} 7... O-O {[%clk 0:02:59.9]} 8. Qd2 {[%clk 0:02:58.4]}
8... Nc6 {[%clk 0:03:00.4]} 9. Bc4 {[%clk 0:02:58.7]} 9... Bd7 {[%clk
0:02:57.2]} 10. O-O-O {[%clk 0:02:58.3]} 10... Rb8 {[%clk 0:02:57.7]} 11. Bb3
{[%clk 0:02:58.8]} 11... b5 {[%clk 0:02:57.5]} 12. h4 {[%clk 0:02:58.1]} 12...
a5 {[%clk 0:02:53.4]} 13. h5 {[%clk 0:02:38.7]} 13... a4 {[%clk 0:02:48.9]} 14.
Bd5 {[%clk 0:02:37.9]} 14... b4 {[%clk 0:02:44.1]} 15. Nce2 {[%clk 0:01:56.8]}
15... Nxd5 {[%clk 0:02:37.7]} 16. exd5 {[%clk 0:01:56.4]} 16... Nxd4 {[%clk
0:02:37.4]} 17. Bxd4 {[%clk 0:01:56.5]} 17... Bxd4 {[%clk 0:02:28]} 18. Qxd4
{[%clk 0:01:51.3]} 18... b3 {[%clk 0:02:26.2]} 19. axb3 {[%clk 0:01:40.2]} 19...
axb3 {[%clk 0:02:27.1]} 20. hxg6 {[%clk 0:01:39.7]} 20... fxg6 {[%clk
0:02:26.4]} 21. Rxh7 {[%clk 0:01:23]} 21... Kxh7 {[%clk 0:02:17.6]} 22. Rh1+
{[%clk 0:01:21.9]} 22... Kg8 {[%clk 0:02:18.1]} 23. Qh8+ {[%clk 0:01:21]} 23...
Kf7 {[%clk 0:02:18]} 24. Qh7+ {[%clk 0:01:21.4]} 24... Kf6 {[%clk 0:02:16.1]}
25. Qh4+ {[%clk 0:00:35.4]} 25... Kf7 {[%clk 0:02:00.6]} 26. Qh7+ {[%clk
0:00:34.5]} 26... Kf6 {[%clk 0:02:01.2]} 27. Qh4+ {[%clk 0:00:33.8]} 27... Kf7
{[%clk 0:01:50.2]} 28. Qh7+ {[%clk 0:00:32.7]} 1/2-1/2